Workbook

Sheet 附件1.面试人员及候考室安排表
A1: 附件1.清镇市2021年统一公开招聘中小学、幼儿园教师面试人员及候考室安排表
A2: 序号 | B2: 考号 | C2: 姓名 | D2: 报考单位及代码 | E2: 报考职位及代码 | F2: 所在候考室
A3: =SUBTOTAL(3,B$2:B3)-1 -> 1 | B3: 10901550115 | C3: 袁洪丽 | D3: 210901清镇市新店镇幼儿园（含鸭甸河分园） | E3: 01幼儿园教师 | F3: 第1候考室
A4: =SUBTOTAL(3,B$2:B4)-1 -> 2 | B4: 10901452722 | C4: 陈冬梅 | D4: 210901清镇市新店镇幼儿园（含鸭甸河分园） | E4: 01幼儿园教师 | F4: 第1候考室
A5: =SUBTOTAL(3,B$2:B5)-1 -> 3 | B5: 10901622510 | C5: 胡金莲 | D5: 210901清镇市新店镇幼儿园（含鸭甸河分园） | E5: 01幼儿园教师 | F5: 第1候考室
A6: =SUBTOTAL(3,B$2:B6)-1 -> 4 | B6: 10901623014 | C6: 孔福 | D6: 210901清镇市新店镇幼儿园（含鸭甸河分园） | E6: 01幼儿园教师 | F6: 第1候考室
A7: =SUBTOTAL(3,B$2:B7)-1 -> 5 | B7: 10901590802 | C7: 冉丽 | D7: 210901清镇市新店镇幼儿园（含鸭甸河分园） | E7: 01幼儿园教师 | F7: 第1候考室
A8: =SUBTOTAL(3,B$2:B8)-1 -> 6 | B8: 10901624322 | C8: 王奎莲 | D8: 210901清镇市新店镇幼儿园（含鸭甸河分园） | E8: 01幼儿园教师 | F8: 第1候考室
A9: =SUBTOTAL(3,B$2:B9)-1 -> 7 | B9: 10901650909 | C9: 张碧兰 | D9: 210901清镇市新店镇幼儿园（含鸭甸河分园） | E9: 01幼儿园教师 | F9: 第1候考室
A10: =SUBTOTAL(3,B$2:B10)-1 -> 8 | B10: 10901592623 | C10: 田小念 | D10: 210901清镇市新店镇幼儿园（含鸭甸河分园） | E10: 01幼儿园教师 | F10: 第1候考室
A11: =SUBTOTAL(3,B$2:B11)-1 -> 9 | B11: 10901591823 | C11: 王霞 | D11: 210901清镇市新店镇幼儿园（含鸭甸河分园） | E11: 01幼儿园教师 | F11: 第1候考室
A12: =SUBTOTAL(3,B$2:B12)-1 -> 10 | B12: 10901593410 | C12: 刘易 | D12: 210901清镇市新店镇幼儿园（含鸭甸河分园） | E12: 01幼儿园教师 | F12: 第1候考室
A13: =SUBTOTAL(3,B$2:B13)-1 -> 11 | B13: 10901671924 | C13: 陆桂菊 | D13: 210901清镇市新店镇幼儿园（含鸭甸河分园） | E13: 01幼儿园教师 | F13: 第1候考室
A14: =SUBTOTAL(3,B$2:B14)-1 -> 12 | B14: 10901677008 | C14: 阮朴玉 | D14: 210901清镇市新店镇幼儿园（含鸭甸河分园） | E14: 01幼儿园教师 | F14: 第1候考室
A15: =SUBTOTAL(3,B$2:B15)-1 -> 13 | B15: 10901623301 | C15: 孙艳 | D15: 210901清镇市新店镇幼儿园（含鸭甸河分园） | E15: 01幼儿园教师 | F15: 第1候考室
A16: =SUBTOTAL(3,B$2:B16)-1 -> 14 | B16: 10901450913 | C16: 武妍弛 | D16: 210901清镇市新店镇幼儿园（含鸭甸河分园） | E16: 01幼儿园教师 | F16: 第1候考室
A17: =SUBTOTAL(3,B$2:B17)-1 -> 15 | B17: 10901621509 | C17: 杨丽 | D17: 210901清镇市新店镇幼儿园（含鸭甸河分园） | E17: 01幼儿园教师 | F17: 第1候考室
A18: =SUBTOTAL(3,B$2:B18)-1 -> 16 | B18: 10901652226 | C18: 胡国英 | D18: 210901清镇市新店镇幼儿园（含鸭甸河分园） | E18: 01幼儿园教师 | F18: 第1候考室
A19: =SUBTOTAL(3,B$2:B19)-1 -> 17 | B19: 10901653122 | C19: 刘平 | D19: 210901清镇市新店镇幼儿园（含鸭甸河分园） | E19: 01幼儿园教师 | F19: 第1候考室
A20: =SUBTOTAL(3,B$2:B20)-1 -> 18 | B20: 10901671526 | C20: 文廷美 | D20: 210901清镇市新店镇幼儿园（含鸭甸河分园） | E20: 01幼儿园教师 | F20: 第1候考室
A21: =SUBTOTAL(3,B$2:B21)-1 -> 19 | B21: 10901654516 | C21: 安琴 | D21: 210901清镇市新店镇幼儿园（含鸭甸河分园） | E21: 01幼儿园教师 | F21: 第1候考室
A22: =SUBTOTAL(3,B$2:B22)-1 -> 20 | B22: 10901593416 | C22: 王玲玲 | D22: 210901清镇市新店镇幼儿园（含鸭甸河分园） | E22: 01幼儿园教师 | F22: 第1候考室
A23: =SUBTOTAL(3,B$2:B23)-1 -> 21 | B23: 10901552701 | C23: 陈江英 | D23: 210901清镇市新店镇幼儿园（含鸭甸河分园） | E23: 01幼儿园教师 | F23: 第1候考室
A24: =SUBTOTAL(3,B$2:B24)-1 -> 22 | B24: 10901451512 | C24: 田婷 | D24: 210901清镇市新店镇幼儿园（含鸭甸河分园） | E24: 01幼儿园教师 | F24: 第1候考室
A25: =SUBTOTAL(3,B$2:B25)-1 -> 23 | B25: 10901622827 | C25: 李立丽 | D25: 210901清镇市新店镇幼儿园（含鸭甸河分园） | E25: 01幼儿园教师 | F25: 第1候考室
A26: =SUBTOTAL(3,B$2:B26)-1 -> 24 | B26: 10901550110 | C26: 邰佳怡 | D26: 210901清镇市新店镇幼儿园（含鸭甸河分园） | E26: 01幼儿园教师 | F26: 第1候考室
A27: =SUBTOTAL(3,B$2:B27)-1 -> 25 | B27: 10901676522 | C27: 吴丽霞 | D27: 210901清镇市新店镇幼儿园（含鸭甸河分园） | E27: 01幼儿园教师 | F27: 第1候考室
A28: =SUBTOTAL(3,B$2:B28)-1 -> 26 | B28: 10901590819 | C28: 闵孟琴 | D28: 210901清镇市新店镇幼儿园（含鸭甸河分园） | E28: 01幼儿园教师 | F28: 第1候考室
A29: =SUBTOTAL(3,B$2:B29)-1 -> 27 | B29: 10901451213 | C29: 叶露 | D29: 210901清镇市新店镇幼儿园（含鸭甸河分园） | E29: 01幼儿园教师 | F29: 第1候考室
A30: =SUBTOTAL(3,B$2:B30)-1 -> 28 | B30: 10901452114 | C30: 孔江兰 | D30: 210901清镇市新店镇幼儿园（含鸭甸河分园） | E30: 01幼儿园教师 | F30: 第1候考室
A31: =SUBTOTAL(3,B$2:B31)-1 -> 29 | B31: 10901677801 | C31: 孔茜 | D31: 210901清镇市新店镇幼儿园（含鸭甸河分园） | E31: 01幼儿园教师 | F31: 第1候考室
A32: =SUBTOTAL(3,B$2:B32)-1 -> 30 | B32: 10901676524 | C32: 向青青 | D32: 210901清镇市新店镇幼儿园（含鸭甸河分园） | E32: 01幼儿园教师 | F32: 第1候考室
A33: =SUBTOTAL(3,B$2:B33)-1 -> 31 | B33: 10901677019 | C33: 严乔粉 | D33: 210901清镇市新店镇幼儿园（含鸭甸河分园） | E33: 01幼儿园教师 | F33: 第1候考室
A34: =SUBTOTAL(3,B$2:B34)-1 -> 32 | B34: 10901653023 | C34: 翟玉梅 | D34: 210901清镇市新店镇幼儿园（含鸭甸河分园） | E34: 01幼儿园教师 | F34: 第1候考室
A35: =SUBTOTAL(3,B$2:B35)-1 -> 33 | B35: 10901591919 | C35: 张靖悦 | D35: 210901清镇市新店镇幼儿园（含鸭甸河分园） | E35: 01幼儿园教师 | F35: 第1候考室
A36: =SUBTOTAL(3,B$2:B36)-1 -> 34 | B36: 10901623707 | C36: 黄杰 | D36: 210901清镇市新店镇幼儿园（含鸭甸河分园） | E36: 01幼儿园教师 | F36: 第1候考室
A37: =SUBTOTAL(3,B$2:B37)-1 -> 35 | B37: 10901552913 | C37: 刘星雨 | D37: 210901清镇市新店镇幼儿园（含鸭甸河分园） | E37: 01幼儿园教师 | F37: 第1候考室
A38: =SUBTOTAL(3,B$2:B38)-1 -> 36 | B38: 10901670717 | C38: 吴学云 | D38: 210901清镇市新店镇幼儿园（含鸭甸河分园） | E38: 01幼儿园教师 | F38: 第1候考室
A39: =SUBTOTAL(3,B$2:B39)-1 -> 37 | B39: 10901672325 | C39: 唐永凤 | D39: 210901清镇市新店镇幼儿园（含鸭甸河分园） | E39: 01幼儿园教师 | F39: 第1候考室
A40: =SUBTOTAL(3,B$2:B40)-1 -> 38 | B40: 10901650121 | C40: 谢红敏 | D40: 210901清镇市新店镇幼儿园（含鸭甸河分园） | E40: 01幼儿园教师 | F40: 第1候考室
A41: =SUBTOTAL(3,B$2:B41)-1 -> 39 | B41: 10901674808 | C41: 杨洁 | D41: 210901清镇市新店镇幼儿园（含鸭甸河分园） | E41: 01幼儿园教师 | F41: 第1候考室
A42: =SUBTOTAL(3,B$2:B42)-1 -> 40 | B42: 10901670126 | C42: 亢贵春 | D42: 210901清镇市新店镇幼儿园（含鸭甸河分园） | E42: 01幼儿园教师 | F42: 第1候考室
A43: =SUBTOTAL(3,B$2:B43)-1 -> 41 | B43: 10901670304 | C43: 罗念 | D43: 210901清镇市新店镇幼儿园（含鸭甸河分园） | E43: 01幼儿园教师 | F43: 第1候考室
A44: =SUBTOTAL(3,B$2:B44)-1 -> 42 | B44: 10901620708 | C44: 王远娅 | D44: 210901清镇市新店镇幼儿园（含鸭甸河分园） | E44: 01幼儿园教师 | F44: 第1候考室
A45: =SUBTOTAL(3,B$2:B45)-1 -> 43 | B45: 10901650508 | C45: 徐秋艳 | D45: 210901清镇市新店镇幼儿园（含鸭甸河分园） | E45: 01幼儿园教师 | F45: 第1候考室
A46: =SUBTOTAL(3,B$2:B46)-1 -> 44 | B46: 10901624520 | C46: 张文文 | D46: 210901清镇市新店镇幼儿园（含鸭甸河分园） | E46: 01幼儿园教师 | F46: 第1候考室
A47: =SUBTOTAL(3,B$2:B47)-1 -> 45 | B47: 10901621327 | C47: 杨秀丽 | D47: 210902清镇市流长乡幼儿园（含第二分园、穿心分园） | E47: 01幼儿园教师 | F47: 第2候考室
A48: =SUBTOTAL(3,B$2:B48)-1 -> 46 | B48: 10901453314 | C48: 龙礼娇 | D48: 210902清镇市流长乡幼儿园（含第二分园、穿心分园） | E48: 01幼儿园教师 | F48: 第2候考室
A49: =SUBTOTAL(3,B$2:B49)-1 -> 47 | B49: 10901653922 | C49: 卢静 | D49: 210902清镇市流长乡幼儿园（含第二分园、穿心分园） | E49: 01幼儿园教师 | F49: 第2候考室
A50: =SUBTOTAL(3,B$2:B50)-1 -> 48 | B50: 10901552816 | C50: 吴丫兰 | D50: 210902清镇市流长乡幼儿园（含第二分园、穿心分园） | E50: 01幼儿园教师 | F50: 第2候考室
A51: =SUBTOTAL(3,B$2:B51)-1 -> 49 | B51: 10901677305 | C51: 雷章艳 | D51: 210902清镇市流长乡幼儿园（含第二分园、穿心分园） | E51: 01幼儿园教师 | F51: 第2候考室
A52: =SUBTOTAL(3,B$2:B52)-1 -> 50 | B52: 10901551022 | C52: 邓廷盼 | D52: 210902清镇市流长乡幼儿园（含第二分园、穿心分园） | E52: 01幼儿园教师 | F52: 第2候考室
A53: =SUBTOTAL(3,B$2:B53)-1 -> 51 | B53: 10901451406 | C53: 汪泽兰 | D53: 210902清镇市流长乡幼儿园（含第二分园、穿心分园） | E53: 01幼儿园教师 | F53: 第2候考室
A54: =SUBTOTAL(3,B$2:B54)-1 -> 52 | B54: 10901674217 | C54: 杨克珍 | D54: 210902清镇市流长乡幼儿园（含第二分园、穿心分园） | E54: 01幼儿园教师 | F54: 第2候考室
A55: =SUBTOTAL(3,B$2:B55)-1 -> 53 | B55: 10901672022 | C55: 任莲丽 | D55: 210902清镇市流长乡幼儿园（含第二分园、穿心分园） | E55: 01幼儿园教师 | F55: 第2候考室
A56: =SUBTOTAL(3,B$2:B56)-1 -> 54 | B56: 10901624214 | C56: 杨兴菊 | D56: 210902清镇市流长乡幼儿园（含第二分园、穿心分园） | E56: 01幼儿园教师 | F56: 第2候考室
A57: =SUBTOTAL(3,B$2:B57)-1 -> 55 | B57: 10901621330 | C57: 丁侣 | D57: 210902清镇市流长乡幼儿园（含第二分园、穿心分园） | E57: 01幼儿园教师 | F57: 第2候考室
A58: =SUBTOTAL(3,B$2:B58)-1 -> 56 | B58: 10901673427 | C58: 宋佳 | D58: 210902清镇市流长乡幼儿园（含第二分园、穿心分园） | E58: 01幼儿园教师 | F58: 第2候考室
A59: =SUBTOTAL(3,B$2:B59)-1 -> 57 | B59: 10901676602 | C59: 李丹 | D59: 210902清镇市流长乡幼儿园（含第二分园、穿心分园） | E59: 01幼儿园教师 | F59: 第2候考室
A60: =SUBTOTAL(3,B$2:B60)-1 -> 58 | B60: 10901671310 | C60: 王荣兴 | D60: 210902清镇市流长乡幼儿园（含第二分园、穿心分园） | E60: 01幼儿园教师 | F60: 第2候考室
A61: =SUBTOTAL(3,B$2:B61)-1 -> 59 | B61: 10901651117 | C61: 左平 | D61: 210902清镇市流长乡幼儿园（含第二分园、穿心分园） | E61: 01幼儿园教师 | F61: 第2候考室
A62: =SUBTOTAL(3,B$2:B62)-1 -> 60 | B62: 10901676125 | C62: 卢昌群 | D62: 210902清镇市流长乡幼儿园（含第二分园、穿心分园） | E62: 01幼儿园教师 | F62: 第2候考室
A63: =SUBTOTAL(3,B$2:B63)-1 -> 61 | B63: 10901654119 | C63: 熊恩燕 | D63: 210902清镇市流长乡幼儿园（含第二分园、穿心分园） | E63: 01幼儿园教师 | F63: 第2候考室
A64: =SUBTOTAL(3,B$2:B64)-1 -> 62 | B64: 10901451416 | C64: 秦芳玉 | D64: 210902清镇市流长乡幼儿园（含第二分园、穿心分园） | E64: 01幼儿园教师 | F64: 第2候考室
A65: =SUBTOTAL(3,B$2:B65)-1 -> 63 | B65: 10901620415 | C65: 严开元 | D65: 210902清镇市流长乡幼儿园（含第二分园、穿心分园） | E65: 01幼儿园教师 | F65: 第2候考室
A66: =SUBTOTAL(3,B$2:B66)-1 -> 64 | B66: 10901451427 | C66: 杨小霞 | D66: 210902清镇市流长乡幼儿园（含第二分园、穿心分园） | E66: 01幼儿园教师 | F66: 第2候考室
A67: =SUBTOTAL(3,B$2:B67)-1 -> 65 | B67: 10901451317 | C67: 娄小芬 | D67: 210902清镇市流长乡幼儿园（含第二分园、穿心分园） | E67: 01幼儿园教师 | F67: 第2候考室
A68: =SUBTOTAL(3,B$2:B68)-1 -> 66 | B68: 10901590421 | C68: 王菊美 | D68: 210902清镇市流长乡幼儿园（含第二分园、穿心分园） | E68: 01幼儿园教师 | F68: 第2候考室
A69: =SUBTOTAL(3,B$2:B69)-1 -> 67 | B69: 10901673311 | C69: 文玲芳 | D69: 210902清镇市流长乡幼儿园（含第二分园、穿心分园） | E69: 01幼儿园教师 | F69: 第2候考室
A70: =SUBTOTAL(3,B$2:B70)-1 -> 68 | B70: 10901651302 | C70: 陈映池 | D70: 210902清镇市流长乡幼儿园（含第二分园、穿心分园） | E70: 01幼儿园教师 | F70: 第2候考室
A71: =SUBTOTAL(3,B$2:B71)-1 -> 69 | B71: 10901654716 | C71: 伍红艳 | D71: 210902清镇市流长乡幼儿园（含第二分园、穿心分园） | E71: 01幼儿园教师 | F71: 第2候考室
A72: =SUBTOTAL(3,B$2:B72)-1 -> 70 | B72: 10901621612 | C72: 曹齐丽 | D72: 210902清镇市流长乡幼儿园（含第二分园、穿心分园） | E72: 01幼儿园教师 | F72: 第2候考室
A73: =SUBTOTAL(3,B$2:B73)-1 -> 71 | B73: 10901550719 | C73: 邹寿敏 | D73: 210902清镇市流长乡幼儿园（含第二分园、穿心分园） | E73: 01幼儿园教师 | F73: 第2候考室
A74: =SUBTOTAL(3,B$2:B74)-1 -> 72 | B74: 10901591014 | C74: 何振容 | D74: 210902清镇市流长乡幼儿园（含第二分园、穿心分园） | E74: 01幼儿园教师 | F74: 第2候考室
A75: =SUBTOTAL(3,B$2:B75)-1 -> 73 | B75: 10901550224 | C75: 冉莲芳 | D75: 210902清镇市流长乡幼儿园（含第二分园、穿心分园） | E75: 01幼儿园教师 | F75: 第2候考室
A76: =SUBTOTAL(3,B$2:B76)-1 -> 74 | B76: 10901652315 | C76: 张令 | D76: 210902清镇市流长乡幼儿园（含第二分园、穿心分园） | E76: 01幼儿园教师 | F76: 第2候考室
A77: =SUBTOTAL(3,B$2:B77)-1 -> 75 | B77: 10901590530 | C77: 李欢欢 | D77: 210902清镇市流长乡幼儿园（含第二分园、穿心分园） | E77: 01幼儿园教师 | F77: 第2候考室
A78: =SUBTOTAL(3,B$2:B78)-1 -> 76 | B78: 10901655416 | C78: 聂慧琳 | D78: 210902清镇市流长乡幼儿园（含第二分园、穿心分园） | E78: 01幼儿园教师 | F78: 第2候考室
A79: =SUBTOTAL(3,B$2:B79)-1 -> 77 | B79: 10901652912 | C79: 张雪 | D79: 210902清镇市流长乡幼儿园（含第二分园、穿心分园） | E79: 01幼儿园教师 | F79: 第2候考室
A80: =SUBTOTAL(3,B$2:B80)-1 -> 78 | B80: 10901653528 | C80: 华倩莹 | D80: 210902清镇市流长乡幼儿园（含第二分园、穿心分园） | E80: 01幼儿园教师 | F80: 第2候考室
A81: =SUBTOTAL(3,B$2:B81)-1 -> 79 | B81: 10901591221 | C81: 罗艳敏 | D81: 210902清镇市流长乡幼儿园（含第二分园、穿心分园） | E81: 01幼儿园教师 | F81: 第2候考室
A82: =SUBTOTAL(3,B$2:B82)-1 -> 80 | B82: 10901454724 | C82: 文漫 | D82: 210902清镇市流长乡幼儿园（含第二分园、穿心分园） | E82: 01幼儿园教师 | F82: 第2候考室
A83: =SUBTOTAL(3,B$2:B83)-1 -> 81 | B83: 10901653028 | C83: 刘鑫 | D83: 210902清镇市流长乡幼儿园（含第二分园、穿心分园） | E83: 01幼儿园教师 | F83: 第2候考室
A84: =SUBTOTAL(3,B$2:B84)-1 -> 82 | B84: 10901550726 | C84: 方明梅 | D84: 210902清镇市流长乡幼儿园（含第二分园、穿心分园） | E84: 01幼儿园教师 | F84: 第2候考室
A85: =SUBTOTAL(3,B$2:B85)-1 -> 83 | B85: 10901671716 | C85: 田苗 | D85: 210902清镇市流长乡幼儿园（含第二分园、穿心分园） | E85: 01幼儿园教师 | F85: 第2候考室
A86: =SUBTOTAL(3,B$2:B86)-1 -> 84 | B86: 10901623720 | C86: 刘小美 | D86: 210902清镇市流长乡幼儿园（含第二分园、穿心分园） | E86: 01幼儿园教师 | F86: 第2候考室
A87: =SUBTOTAL(3,B$2:B87)-1 -> 85 | B87: 10901653128 | C87: 周黔茜 | D87: 210902清镇市流长乡幼儿园（含第二分园、穿心分园） | E87: 01幼儿园教师 | F87: 第2候考室
A88: =SUBTOTAL(3,B$2:B88)-1 -> 86 | B88: 10901678122 | C88: 陈梅 | D88: 210902清镇市流长乡幼儿园（含第二分园、穿心分园） | E88: 01幼儿园教师 | F88: 第2候考室
A89: =SUBTOTAL(3,B$2:B89)-1 -> 87 | B89: 10901623708 | C89: 任廷碧 | D89: 210902清镇市流长乡幼儿园（含第二分园、穿心分园） | E89: 01幼儿园教师 | F89: 第2候考室
A90: =SUBTOTAL(3,B$2:B90)-1 -> 88 | B90: 10901620317 | C90: 严艳琼 | D90: 210902清镇市流长乡幼儿园（含第二分园、穿心分园） | E90: 01幼儿园教师 | F90: 第2候考室
A91: =SUBTOTAL(3,B$2:B91)-1 -> 89 | B91: 10901676902 | C91: 张玲玲 | D91: 210902清镇市流长乡幼儿园（含第二分园、穿心分园） | E91: 01幼儿园教师 | F91: 第2候考室
A92: =SUBTOTAL(3,B$2:B92)-1 -> 90 | B92: 10901455022 | C92: 赵腊英 | D92: 210902清镇市流长乡幼儿园（含第二分园、穿心分园） | E92: 01幼儿园教师 | F92: 第2候考室
A93: =SUBTOTAL(3,B$2:B93)-1 -> 91 | B93: 10901676117 | C93: 田维春 | D93: 210902清镇市流长乡幼儿园（含第二分园、穿心分园） | E93: 02幼儿园教师 | F93: 第3候考室
A94: =SUBTOTAL(3,B$2:B94)-1 -> 92 | B94: 10901451307 | C94: 唐娟 | D94: 210902清镇市流长乡幼儿园（含第二分园、穿心分园） | E94: 02幼儿园教师 | F94: 第3候考室
A95: =SUBTOTAL(3,B$2:B95)-1 -> 93 | B95: 10901591101 | C95: 李凤仙 | D95: 210902清镇市流长乡幼儿园（含第二分园、穿心分园） | E95: 02幼儿园教师 | F95: 第3候考室
A96: =SUBTOTAL(3,B$2:B96)-1 -> 94 | B96: 10901674401 | C96: 向艳清 | D96: 210902清镇市流长乡幼儿园（含第二分园、穿心分园） | E96: 02幼儿园教师 | F96: 第3候考室
A97: =SUBTOTAL(3,B$2:B97)-1 -> 95 | B97: 10901651724 | C97: 余敏 | D97: 210902清镇市流长乡幼儿园（含第二分园、穿心分园） | E97: 02幼儿园教师 | F97: 第3候考室
A98: =SUBTOTAL(3,B$2:B98)-1 -> 96 | B98: 10901651715 | C98: 陈芳芳 | D98: 210902清镇市流长乡幼儿园（含第二分园、穿心分园） | E98: 02幼儿园教师 | F98: 第3候考室
A99: =SUBTOTAL(3,B$2:B99)-1 -> 97 | B99: 10901653725 | C99: 邓丹 | D99: 210902清镇市流长乡幼儿园（含第二分园、穿心分园） | E99: 02幼儿园教师 | F99: 第3候考室
A100: =SUBTOTAL(3,B$2:B100)-1 -> 98 | B100: 10901590803 | C100: 杨吉琼 | D100: 210902清镇市流长乡幼儿园（含第二分园、穿心分园） | E100: 02幼儿园教师 | F100: 第3候考室
A101: =SUBTOTAL(3,B$2:B101)-1 -> 99 | B101: 10901452113 | C101: 杨艳 | D101: 210902清镇市流长乡幼儿园（含第二分园、穿心分园） | E101: 02幼儿园教师 | F101: 第3候考室
A102: =SUBTOTAL(3,B$2:B102)-1 -> 100 | B102: 10901452813 | C102: 罗规规 | D102: 210902清镇市流长乡幼儿园（含第二分园、穿心分园） | E102: 02幼儿园教师 | F102: 第3候考室
A103: =SUBTOTAL(3,B$2:B103)-1 -> 101 | B103: 10901454713 | C103: 杨青 | D103: 210902清镇市流长乡幼儿园（含第二分园、穿心分园） | E103: 02幼儿园教师 | F103: 第3候考室
A104: =SUBTOTAL(3,B$2:B104)-1 -> 102 | B104: 10901674817 | C104: 杜列梅 | D104: 210902清镇市流长乡幼儿园（含第二分园、穿心分园） | E104: 02幼儿园教师 | F104: 第3候考室
A105: =SUBTOTAL(3,B$2:B105)-1 -> 103 | B105: 10901676119 | C105: 王夏蕊 | D105: 210902清镇市流长乡幼儿园（含第二分园、穿心分园） | E105: 02幼儿园教师 | F105: 第3候考室
A106: =SUBTOTAL(3,B$2:B106)-1 -> 104 | B106: 10901674509 | C106: 杨昌仙 | D106: 210902清镇市流长乡幼儿园（含第二分园、穿心分园） | E106: 02幼儿园教师 | F106: 第3候考室
A107: =SUBTOTAL(3,B$2:B107)-1 -> 105 | B107: 10901551619 | C107: 蒋秀 | D107: 210902清镇市流长乡幼儿园（含第二分园、穿心分园） | E107: 02幼儿园教师 | F107: 第3候考室
A108: =SUBTOTAL(3,B$2:B108)-1 -> 106 | B108: 10901593523 | C108: 赵双 | D108: 210902清镇市流长乡幼儿园（含第二分园、穿心分园） | E108: 02幼儿园教师 | F108: 第3候考室
A109: =SUBTOTAL(3,B$2:B109)-1 -> 107 | B109: 10901453603 | C109: 蔡娟 | D109: 210902清镇市流长乡幼儿园（含第二分园、穿心分园） | E109: 02幼儿园教师 | F109: 第3候考室
A110: =SUBTOTAL(3,B$2:B110)-1 -> 108 | B110: 10901676404 | C110: 范倩 | D110: 210902清镇市流长乡幼儿园（含第二分园、穿心分园） | E110: 02幼儿园教师 | F110: 第3候考室
A111: =SUBTOTAL(3,B$2:B111)-1 -> 109 | B111: 10901675316 | C111: 李雪 | D111: 210902清镇市流长乡幼儿园（含第二分园、穿心分园） | E111: 02幼儿园教师 | F111: 第3候考室
A112: =SUBTOTAL(3,B$2:B112)-1 -> 110 | B112: 10901455410 | C112: 邱娇 | D112: 210902清镇市流长乡幼儿园（含第二分园、穿心分园） | E112: 02幼儿园教师 | F112: 第3候考室
A113: =SUBTOTAL(3,B$2:B113)-1 -> 111 | B113: 10901592615 | C113: 袁正凌 | D113: 210902清镇市流长乡幼儿园（含第二分园、穿心分园） | E113: 02幼儿园教师 | F113: 第3候考室
A114: =SUBTOTAL(3,B$2:B114)-1 -> 112 | B114: 10901455411 | C114: 周旭 | D114: 210902清镇市流长乡幼儿园（含第二分园、穿心分园） | E114: 02幼儿园教师 | F114: 第3候考室
A115: =SUBTOTAL(3,B$2:B115)-1 -> 113 | B115: 10901673327 | C115: 钱油香 | D115: 210902清镇市流长乡幼儿园（含第二分园、穿心分园） | E115: 02幼儿园教师 | F115: 第3候考室
A116: =SUBTOTAL(3,B$2:B116)-1 -> 114 | B116: 10901671011 | C116: 尚明慧 | D116: 210902清镇市流长乡幼儿园（含第二分园、穿心分园） | E116: 02幼儿园教师 | F116: 第3候考室
A117: =SUBTOTAL(3,B$2:B117)-1 -> 115 | B117: 10901620101 | C117: 孙颖 | D117: 210902清镇市流长乡幼儿园（含第二分园、穿心分园） | E117: 02幼儿园教师 | F117: 第3候考室
A118: =SUBTOTAL(3,B$2:B118)-1 -> 116 | B118: 10901651610 | C118: 付梅 | D118: 210902清镇市流长乡幼儿园（含第二分园、穿心分园） | E118: 02幼儿园教师 | F118: 第3候考室
A119: =SUBTOTAL(3,B$2:B119)-1 -> 117 | B119: 10901650604 | C119: 杨丽 | D119: 210902清镇市流长乡幼儿园（含第二分园、穿心分园） | E119: 02幼儿园教师 | F119: 第3候考室
A120: =SUBTOTAL(3,B$2:B120)-1 -> 118 | B120: 10901671721 | C120: 余海霞 | D120: 210902清镇市流长乡幼儿园（含第二分园、穿心分园） | E120: 02幼儿园教师 | F120: 第3候考室
A121: =SUBTOTAL(3,B$2:B121)-1 -> 119 | B121: 10901591706 | C121: 龚艳 | D121: 210902清镇市流长乡幼儿园（含第二分园、穿心分园） | E121: 02幼儿园教师 | F121: 第3候考室
A122: =SUBTOTAL(3,B$2:B122)-1 -> 120 | B122: 10901551208 | C122: 张圆 | D122: 210902清镇市流长乡幼儿园（含第二分园、穿心分园） | E122: 02幼儿园教师 | F122: 第3候考室
A123: =SUBTOTAL(3,B$2:B123)-1 -> 121 | B123: 10901452709 | C123: 舒小琴 | D123: 210902清镇市流长乡幼儿园（含第二分园、穿心分园） | E123: 02幼儿园教师 | F123: 第3候考室
A124: =SUBTOTAL(3,B$2:B124)-1 -> 122 | B124: 10901675730 | C124: 杨玉琴 | D124: 210902清镇市流长乡幼儿园（含第二分园、穿心分园） | E124: 02幼儿园教师 | F124: 第3候考室
A125: =SUBTOTAL(3,B$2:B125)-1 -> 123 | B125: 10901621527 | C125: 陈宁 | D125: 210902清镇市流长乡幼儿园（含第二分园、穿心分园） | E125: 02幼儿园教师 | F125: 第3候考室
A126: =SUBTOTAL(3,B$2:B126)-1 -> 124 | B126: 10901552425 | C126: 邓琴 | D126: 210902清镇市流长乡幼儿园（含第二分园、穿心分园） | E126: 02幼儿园教师 | F126: 第3候考室
A127: =SUBTOTAL(3,B$2:B127)-1 -> 125 | B127: 10901655114 | C127: 吴艳婷 | D127: 210902清镇市流长乡幼儿园（含第二分园、穿心分园） | E127: 02幼儿园教师 | F127: 第3候考室
A128: =SUBTOTAL(3,B$2:B128)-1 -> 126 | B128: 10901672823 | C128: 左金贵 | D128: 210902清镇市流长乡幼儿园（含第二分园、穿心分园） | E128: 02幼儿园教师 | F128: 第3候考室
A129: =SUBTOTAL(3,B$2:B129)-1 -> 127 | B129: 10901674024 | C129: 陈笛 | D129: 210902清镇市流长乡幼儿园（含第二分园、穿心分园） | E129: 03幼儿园教师 | F129: 第4候考室
A130: =SUBTOTAL(3,B$2:B130)-1 -> 128 | B130: 10901552912 | C130: 李想想 | D130: 210902清镇市流长乡幼儿园（含第二分园、穿心分园） | E130: 03幼儿园教师 | F130: 第4候考室
A131: =SUBTOTAL(3,B$2:B131)-1 -> 129 | B131: 10901670412 | C131: 吴云香 | D131: 210902清镇市流长乡幼儿园（含第二分园、穿心分园） | E131: 03幼儿园教师 | F131: 第4候考室
A132: =SUBTOTAL(3,B$2:B132)-1 -> 130 | B132: 10901677023 | C132: 陈正碧 | D132: 210902清镇市流长乡幼儿园（含第二分园、穿心分园） | E132: 03幼儿园教师 | F132: 第4候考室
A133: =SUBTOTAL(3,B$2:B133)-1 -> 131 | B133: 10901453301 | C133: 刘瑶 | D133: 210902清镇市流长乡幼儿园（含第二分园、穿心分园） | E133: 03幼儿园教师 | F133: 第4候考室
A134: =SUBTOTAL(3,B$2:B134)-1 -> 132 | B134: 10901670328 | C134: 谌婷 | D134: 210902清镇市流长乡幼儿园（含第二分园、穿心分园） | E134: 03幼儿园教师 | F134: 第4候考室
A135: =SUBTOTAL(3,B$2:B135)-1 -> 133 | B135: 10901622618 | C135: 张会 | D135: 210902清镇市流长乡幼儿园（含第二分园、穿心分园） | E135: 03幼儿园教师 | F135: 第4候考室
A136: =SUBTOTAL(3,B$2:B136)-1 -> 134 | B136: 10901651617 | C136: 杨慧 | D136: 210902清镇市流长乡幼儿园（含第二分园、穿心分园） | E136: 03幼儿园教师 | F136: 第4候考室
A137: =SUBTOTAL(3,B$2:B137)-1 -> 135 | B137: 10901451218 | C137: 卢苇苇 | D137: 210902清镇市流长乡幼儿园（含第二分园、穿心分园） | E137: 03幼儿园教师 | F137: 第4候考室
A138: =SUBTOTAL(3,B$2:B138)-1 -> 136 | B138: 10901452616 | C138: 汪昆明 | D138: 210902清镇市流长乡幼儿园（含第二分园、穿心分园） | E138: 03幼儿园教师 | F138: 第4候考室
A139: =SUBTOTAL(3,B$2:B139)-1 -> 137 | B139: 10901450810 | C139: 王肖肖 | D139: 210902清镇市流长乡幼儿园（含第二分园、穿心分园） | E139: 03幼儿园教师 | F139: 第4候考室
A140: =SUBTOTAL(3,B$2:B140)-1 -> 138 | B140: 10901621904 | C140: 王颖露 | D140: 210902清镇市流长乡幼儿园（含第二分园、穿心分园） | E140: 03幼儿园教师 | F140: 第4候考室
A141: =SUBTOTAL(3,B$2:B141)-1 -> 139 | B141: 10901677627 | C141: 晋方英 | D141: 210902清镇市流长乡幼儿园（含第二分园、穿心分园） | E141: 03幼儿园教师 | F141: 第4候考室
A142: =SUBTOTAL(3,B$2:B142)-1 -> 140 | B142: 10901674430 | C142: 彭凤 | D142: 210902清镇市流长乡幼儿园（含第二分园、穿心分园） | E142: 03幼儿园教师 | F142: 第4候考室
A143: =SUBTOTAL(3,B$2:B143)-1 -> 141 | B143: 10901671423 | C143: 白胜兰 | D143: 210902清镇市流长乡幼儿园（含第二分园、穿心分园） | E143: 03幼儿园教师 | F143: 第4候考室
A144: =SUBTOTAL(3,B$2:B144)-1 -> 142 | B144: 10901673624 | C144: 付梦梦 | D144: 210902清镇市流长乡幼儿园（含第二分园、穿心分园） | E144: 03幼儿园教师 | F144: 第4候考室
A145: =SUBTOTAL(3,B$2:B145)-1 -> 143 | B145: 10901670210 | C145: 刘光琴 | D145: 210902清镇市流长乡幼儿园（含第二分园、穿心分园） | E145: 03幼儿园教师 | F145: 第4候考室
A146: =SUBTOTAL(3,B$2:B146)-1 -> 144 | B146: 10901622517 | C146: 谭雨莲 | D146: 210902清镇市流长乡幼儿园（含第二分园、穿心分园） | E146: 03幼儿园教师 | F146: 第4候考室
A147: =SUBTOTAL(3,B$2:B147)-1 -> 145 | B147: 10901592504 | C147: 唐红艳 | D147: 210902清镇市流长乡幼儿园（含第二分园、穿心分园） | E147: 03幼儿园教师 | F147: 第4候考室
A148: =SUBTOTAL(3,B$2:B148)-1 -> 146 | B148: 10901552223 | C148: 曾梅 | D148: 210902清镇市流长乡幼儿园（含第二分园、穿心分园） | E148: 03幼儿园教师 | F148: 第4候考室
A149: =SUBTOTAL(3,B$2:B149)-1 -> 147 | B149: 10901621925 | C149: 李益翠 | D149: 210902清镇市流长乡幼儿园（含第二分园、穿心分园） | E149: 03幼儿园教师 | F149: 第4候考室
A150: =SUBTOTAL(3,B$2:B150)-1 -> 148 | B150: 10901670212 | C150: 马倩 | D150: 210902清镇市流长乡幼儿园（含第二分园、穿心分园） | E150: 03幼儿园教师 | F150: 第4候考室
A151: =SUBTOTAL(3,B$2:B151)-1 -> 149 | B151: 10901673721 | C151: 任光旭 | D151: 210902清镇市流长乡幼儿园（含第二分园、穿心分园） | E151: 03幼儿园教师 | F151: 第4候考室
A152: =SUBTOTAL(3,B$2:B152)-1 -> 150 | B152: 10901452328 | C152: 顾玉琳 | D152: 210902清镇市流长乡幼儿园（含第二分园、穿心分园） | E152: 03幼儿园教师 | F152: 第4候考室
A153: =SUBTOTAL(3,B$2:B153)-1 -> 151 | B153: 10901451513 | C153: 贺化婷 | D153: 210902清镇市流长乡幼儿园（含第二分园、穿心分园） | E153: 03幼儿园教师 | F153: 第4候考室
A154: =SUBTOTAL(3,B$2:B154)-1 -> 152 | B154: 10901675602 | C154: 安娅 | D154: 210902清镇市流长乡幼儿园（含第二分园、穿心分园） | E154: 03幼儿园教师 | F154: 第4候考室
A155: =SUBTOTAL(3,B$2:B155)-1 -> 153 | B155: 10901673025 | C155: 付亚 | D155: 210902清镇市流长乡幼儿园（含第二分园、穿心分园） | E155: 03幼儿园教师 | F155: 第4候考室
A156: =SUBTOTAL(3,B$2:B156)-1 -> 154 | B156: 10901672609 | C156: 田艳 | D156: 210902清镇市流长乡幼儿园（含第二分园、穿心分园） | E156: 03幼儿园教师 | F156: 第4候考室
A157: =SUBTOTAL(3,B$2:B157)-1 -> 155 | B157: 10901451022 | C157: 罗炉 | D157: 210902清镇市流长乡幼儿园（含第二分园、穿心分园） | E157: 03幼儿园教师 | F157: 第4候考室
A158: =SUBTOTAL(3,B$2:B158)-1 -> 156 | B158: 10901676705 | C158: 熊梅 | D158: 210902清镇市流长乡幼儿园（含第二分园、穿心分园） | E158: 03幼儿园教师 | F158: 第4候考室
A159: =SUBTOTAL(3,B$2:B159)-1 -> 157 | B159: 10901591403 | C159: 杨柳 | D159: 210902清镇市流长乡幼儿园（含第二分园、穿心分园） | E159: 03幼儿园教师 | F159: 第4候考室
A160: =SUBTOTAL(3,B$2:B160)-1 -> 158 | B160: 10901677206 | C160: 胡敏 | D160: 210902清镇市流长乡幼儿园（含第二分园、穿心分园） | E160: 03幼儿园教师 | F160: 第4候考室
A161: =SUBTOTAL(3,B$2:B161)-1 -> 159 | B161: 10901651809 | C161: 刘明仙 | D161: 210902清镇市流长乡幼儿园（含第二分园、穿心分园） | E161: 03幼儿园教师 | F161: 第4候考室
A162: =SUBTOTAL(3,B$2:B162)-1 -> 160 | B162: 10901550312 | C162: 冉慧 | D162: 210902清镇市流长乡幼儿园（含第二分园、穿心分园） | E162: 03幼儿园教师 | F162: 第4候考室
A163: =SUBTOTAL(3,B$2:B163)-1 -> 161 | B163: 10901677811 | C163: 谢大琴 | D163: 210902清镇市流长乡幼儿园（含第二分园、穿心分园） | E163: 03幼儿园教师 | F163: 第4候考室
A164: =SUBTOTAL(3,B$2:B164)-1 -> 162 | B164: 10901654611 | C164: 晏莎 | D164: 210902清镇市流长乡幼儿园（含第二分园、穿心分园） | E164: 03幼儿园教师 | F164: 第4候考室
A165: =SUBTOTAL(3,B$2:B165)-1 -> 163 | B165: 10901674228 | C165: 黄小仙 | D165: 210902清镇市流长乡幼儿园（含第二分园、穿心分园） | E165: 04幼儿园教师 | F165: 第5候考室
A166: =SUBTOTAL(3,B$2:B166)-1 -> 164 | B166: 10901590201 | C166: 付贵敏 | D166: 210902清镇市流长乡幼儿园（含第二分园、穿心分园） | E166: 04幼儿园教师 | F166: 第5候考室
A167: =SUBTOTAL(3,B$2:B167)-1 -> 165 | B167: 10901677706 | C167: 王政琴 | D167: 210902清镇市流长乡幼儿园（含第二分园、穿心分园） | E167: 04幼儿园教师 | F167: 第5候考室
A168: =SUBTOTAL(3,B$2:B168)-1 -> 166 | B168: 10901621006 | C168: 朱泽敏 | D168: 210902清镇市流长乡幼儿园（含第二分园、穿心分园） | E168: 04幼儿园教师 | F168: 第5候考室
A169: =SUBTOTAL(3,B$2:B169)-1 -> 167 | B169: 10901676215 | C169: 罗春艳 | D169: 210902清镇市流长乡幼儿园（含第二分园、穿心分园） | E169: 04幼儿园教师 | F169: 第5候考室
A170: =SUBTOTAL(3,B$2:B170)-1 -> 168 | B170: 10901592820 | C170: 吴夏艳 | D170: 210902清镇市流长乡幼儿园（含第二分园、穿心分园） | E170: 04幼儿园教师 | F170: 第5候考室
A171: =SUBTOTAL(3,B$2:B171)-1 -> 169 | B171: 10901592409 | C171: 杨胜英 | D171: 210902清镇市流长乡幼儿园（含第二分园、穿心分园） | E171: 04幼儿园教师 | F171: 第5候考室
A172: =SUBTOTAL(3,B$2:B172)-1 -> 170 | B172: 10901654424 | C172: 周敏 | D172: 210902清镇市流长乡幼儿园（含第二分园、穿心分园） | E172: 04幼儿园教师 | F172: 第5候考室
A173: =SUBTOTAL(3,B$2:B173)-1 -> 171 | B173: 10901673822 | C173: 黄英 | D173: 210902清镇市流长乡幼儿园（含第二分园、穿心分园） | E173: 04幼儿园教师 | F173: 第5候考室
A174: =SUBTOTAL(3,B$2:B174)-1 -> 172 | B174: 10901676123 | C174: 刘忠琴 | D174: 210902清镇市流长乡幼儿园（含第二分园、穿心分园） | E174: 04幼儿园教师 | F174: 第5候考室
A175: =SUBTOTAL(3,B$2:B175)-1 -> 173 | B175: 10901453820 | C175: 韦加洪 | D175: 210902清镇市流长乡幼儿园（含第二分园、穿心分园） | E175: 04幼儿园教师 | F175: 第5候考室
A176: =SUBTOTAL(3,B$2:B176)-1 -> 174 | B176: 10901592714 | C176: 邓雪玲 | D176: 210902清镇市流长乡幼儿园（含第二分园、穿心分园） | E176: 04幼儿园教师 | F176: 第5候考室
A177: =SUBTOTAL(3,B$2:B177)-1 -> 175 | B177: 10901552920 | C177: 卢灵巧 | D177: 210902清镇市流长乡幼儿园（含第二分园、穿心分园） | E177: 04幼儿园教师 | F177: 第5候考室
A178: =SUBTOTAL(3,B$2:B178)-1 -> 176 | B178: 10901620323 | C178: 邓景宏 | D178: 210902清镇市流长乡幼儿园（含第二分园、穿心分园） | E178: 04幼儿园教师 | F178: 第5候考室
A179: =SUBTOTAL(3,B$2:B179)-1 -> 177 | B179: 10901551316 | C179: 付莉 | D179: 210902清镇市流长乡幼儿园（含第二分园、穿心分园） | E179: 04幼儿园教师 | F179: 第5候考室
A180: =SUBTOTAL(3,B$2:B180)-1 -> 178 | B180: 10901552510 | C180: 王菁 | D180: 210902清镇市流长乡幼儿园（含第二分园、穿心分园） | E180: 04幼儿园教师 | F180: 第5候考室
A181: =SUBTOTAL(3,B$2:B181)-1 -> 179 | B181: 10901622610 | C181: 鄢小雪 | D181: 210902清镇市流长乡幼儿园（含第二分园、穿心分园） | E181: 04幼儿园教师 | F181: 第5候考室
A182: =SUBTOTAL(3,B$2:B182)-1 -> 180 | B182: 10901671811 | C182: 黄露 | D182: 210902清镇市流长乡幼儿园（含第二分园、穿心分园） | E182: 04幼儿园教师 | F182: 第5候考室
A183: =SUBTOTAL(3,B$2:B183)-1 -> 181 | B183: 10901452115 | C183: 黄敏 | D183: 210902清镇市流长乡幼儿园（含第二分园、穿心分园） | E183: 04幼儿园教师 | F183: 第5候考室
A184: =SUBTOTAL(3,B$2:B184)-1 -> 182 | B184: 10901452808 | C184: 安静 | D184: 210902清镇市流长乡幼儿园（含第二分园、穿心分园） | E184: 04幼儿园教师 | F184: 第5候考室
A185: =SUBTOTAL(3,B$2:B185)-1 -> 183 | B185: 10901671917 | C185: 赵凤 | D185: 210902清镇市流长乡幼儿园（含第二分园、穿心分园） | E185: 04幼儿园教师 | F185: 第5候考室
A186: =SUBTOTAL(3,B$2:B186)-1 -> 184 | B186: 10901591904 | C186: 邓云丽 | D186: 210902清镇市流长乡幼儿园（含第二分园、穿心分园） | E186: 04幼儿园教师 | F186: 第5候考室
A187: =SUBTOTAL(3,B$2:B187)-1 -> 185 | B187: 10901675525 | C187: 吴平芝 | D187: 210902清镇市流长乡幼儿园（含第二分园、穿心分园） | E187: 04幼儿园教师 | F187: 第5候考室
A188: =SUBTOTAL(3,B$2:B188)-1 -> 186 | B188: 10901454302 | C188: 吴英菲 | D188: 210902清镇市流长乡幼儿园（含第二分园、穿心分园） | E188: 04幼儿园教师 | F188: 第5候考室
A189: =SUBTOTAL(3,B$2:B189)-1 -> 187 | B189: 10901653613 | C189: 张贵源 | D189: 210902清镇市流长乡幼儿园（含第二分园、穿心分园） | E189: 04幼儿园教师 | F189: 第5候考室
A190: =SUBTOTAL(3,B$2:B190)-1 -> 188 | B190: 10901455607 | C190: 张孟霞 | D190: 210902清镇市流长乡幼儿园（含第二分园、穿心分园） | E190: 04幼儿园教师 | F190: 第5候考室
A191: =SUBTOTAL(3,B$2:B191)-1 -> 189 | B191: 10901653328 | C191: 黑瑞 | D191: 210902清镇市流长乡幼儿园（含第二分园、穿心分园） | E191: 04幼儿园教师 | F191: 第5候考室
A192: =SUBTOTAL(3,B$2:B192)-1 -> 190 | B192: 10901676915 | C192: 颜家雪 | D192: 210902清镇市流长乡幼儿园（含第二分园、穿心分园） | E192: 04幼儿园教师 | F192: 第5候考室
A193: =SUBTOTAL(3,B$2:B193)-1 -> 191 | B193: 10901551307 | C193: 蒋晓庆 | D193: 210902清镇市流长乡幼儿园（含第二分园、穿心分园） | E193: 04幼儿园教师 | F193: 第5候考室
A194: =SUBTOTAL(3,B$2:B194)-1 -> 192 | B194: 10901623227 | C194: 杨桃 | D194: 210902清镇市流长乡幼儿园（含第二分园、穿心分园） | E194: 04幼儿园教师 | F194: 第5候考室
A195: =SUBTOTAL(3,B$2:B195)-1 -> 193 | B195: 10901621722 | C195: 赵洋 | D195: 210902清镇市流长乡幼儿园（含第二分园、穿心分园） | E195: 04幼儿园教师 | F195: 第5候考室
A196: =SUBTOTAL(3,B$2:B196)-1 -> 194 | B196: 10901651613 | C196: 王应 | D196: 210902清镇市流长乡幼儿园（含第二分园、穿心分园） | E196: 05幼儿园教师 | F196: 第6候考室
A197: =SUBTOTAL(3,B$2:B197)-1 -> 195 | B197: 10901550512 | C197: 甘雯竹 | D197: 210902清镇市流长乡幼儿园（含第二分园、穿心分园） | E197: 05幼儿园教师 | F197: 第6候考室
A198: =SUBTOTAL(3,B$2:B198)-1 -> 196 | B198: 10901455314 | C198: 杨晓娟 | D198: 210902清镇市流长乡幼儿园（含第二分园、穿心分园） | E198: 05幼儿园教师 | F198: 第6候考室
A199: =SUBTOTAL(3,B$2:B199)-1 -> 197 | B199: 10901593505 | C199: 姜云 | D199: 210902清镇市流长乡幼儿园（含第二分园、穿心分园） | E199: 05幼儿园教师 | F199: 第6候考室
A200: =SUBTOTAL(3,B$2:B200)-1 -> 198 | B200: 10901673116 | C200: 张晓洪 | D200: 210902清镇市流长乡幼儿园（含第二分园、穿心分园） | E200: 05幼儿园教师 | F200: 第6候考室
... 480 more rows
